Workbook

Sheet Year 1 and Year 2
B1: APPENDIX A - PRICING SHEET
B2: THE APPOINTMENT OF A SERVICE PROVIDER TO FACILITATE THE REVIEW AND REALIGNING OF QUALIFICATIONS AND DEVELOPMENT OF ASSESSMENT DOCUMENTS
B3: Bid No: BS/2023/RFB508
A5: Description | E5: Qty Year 1 | F5: UNIT PRICE ( Ex Vat) YEAR 1 | G5: TOTAL AMOUNT YEAR 1 (Excluding VAT) | H5: Qty Year 2 | I5: UNIT PRICE ( Ex Vat) YEAR 2 | J5: TOTAL AMOUNT YEAR 2 (EXCLUDING VAT) | K5: TOTAL AMOUNT (Ex Vat) FOR 2 YEARS
A6: Facilitate the realignment of 12 historically registered qualifications including the Qualifications Assessment blueprint (QAS addenda), exemplars including five (5) assessment tools and the memoranda for the 12 qualifications (including required reports) | E6: 12 | F6: R 100.00 | G6: =+E6*F6 -> R1,200.00 | K6: =G6 -> R1,200.00
A7: Facilitate the review of (one) 1 occupational qualification that expires on 05 December 2024 including the Qualifications Assessment blueprint (QAS addenda), exemplars including five (5) assessment tools and the memoranda (including required reports) | E7: 1 | F7: R 100.00 | G7: =+E7*F7 -> R100.00 | K7: =G7 -> R100.00
A8: 3.3 Facilitate the development of Qualification Assessment Specifications (QAS), Assessment Instruments, Memoranda and Exemplars for 3 occupational qualifications within the banking and alternative banking sector scope. (including required reports) | E8: 0 | H8: 3 | I8: R 100.00 | J8: =+H8*I8 -> R300.00 | K8: =J8 -> R300.00
A9: Subtotal | G9: =G6+G7 -> R 1,300.00 | J9: =J8 -> R 300.00 | K9: =K6+K7+K8 -> R 1,600.00
A13: Other Items not included in above - BIDDER TO SPECIFY | E13: =+E5 -> Qty Year 1 | F13: UNIT PRICE ( Ex Vat) YEAR 1 | G13: TOTAL AMOUNT YEAR 1 (Excluding VAT) | H13: Qty Year 2 | I13: UNIT PRICE ( Ex Vat) YEAR 2 | J13: TOTAL AMOUNT YEAR 2 (EXCLUDING VAT) | K13: TOTAL AMOUNT (Ex Vat) FOR 2 YEARS
A14: 1 | E14: 0 | F14: R 0.00 | G14: =+E14*F14 -> R0.00 | H14: 0 | I14: R 0.00 | J14: =+I14*H14 -> R0.00 | K14: =+G14+J14 -> R0.00
A15: 2 | E15: 0 | F15: R 0.00 | G15: R0.00 | H15: 0 | I15: R 0.00 | J15: R0.00 | K15: =+G15+J15 -> R0.00
A16: 3 | E16: 0 | F16: R 0.00 | G16: R0.00 | H16: 0 | I16: R 0.00 | J16: R0.00 | K16: =+G16+J16 -> R0.00
A17: OPTIONAL/ ADDITIONAl SUB TOTAL | G17: =SUM(G14:G16) -> R 0.00 | J17: =SUM(J14:J16) -> R 0.00 | K17: =SUM(K14:K16) -> R 0.00
A19: TOTAL EXCLUDING VAT | C19: Total excluding VAT | G19: =+G17+G9 -> R1,300.00 | J19: =+J17+J9 -> R 300.00 | K19: =K17+K9 -> R 1,600.00
C20: VAT if Applicable (If VAT registered or over VAT threshold) | G20: =+G19*0.15 -> R195.00 | J20: =+J19*0.15 -> R45.00 | K20: =+K19*0.15 -> R240.00
C21: TOTAL BIDDING PRICE INCL VAT | G21: =+G19+G20 -> R1,495.00 | J21: =+J19+J20 -> R345.00 | K21: =+K19+K20 -> R1,840.00
A22: Notes:
A23: Pricing is for evaluation purposes and the contract value will be as per the budgeted price for this project
A24: Pricing must cover all items detailed in the Terms of Reference
A25: Pricing must remain firm for each year quoted period
A26: Pricing must include Value Added Tax (VAT) where applicable.
A27: The total contract value will be based on the budgeted amount for this services
A28: Service provider must complete blocks in yellow. Total values in this spreadsheet are automatically calculated and filled in.
A30: Date:
A31: Service Provider Name
A32: Name of Person Signing
A33: Signature
